bitfinex/quotes_BTCUSD_20240623
["timestamp","ask_amount","ask_price","bid_price","bid_amount"]
[1719185914234,1.17010558,63434.0,63431.0,0.04024227]
[1719185914468,0.24806458,63433.0,63431.0,0.04024227]
[1719185914610,0.09550346,63432.0,63431.0,0.04024227]
[1719185914818,0.24806458,63432.0,63431.0,0.05024227]
[1719185917892,0.24806458,63432.0,63431.0,0.07324227]
[1719185918311,0.24806458,63432.0,63431.0,0.06324227]
[1719185919535,0.24806458,63432.0,63431.0,0.07324227]
[1719185920125,0.24691225,63432.0,63431.0,0.07324227]
[1719185920400,0.24691225,63432.0,63431.0,0.023]
[1719185920602,0.24691225,63432.0,63431.0,0.07324227]
[1719185920603,0.09435113,63432.0,63431.0,0.07324227]
[1719185920821,0.09420631,63439.0,63436.0,0.04024227]
[1719185921025,2.12848871,63438.0,63436.0,0.04024227]
[1719185921248,1.71215027,63437.0,63431.0,0.023]
[1719185921450,2.92296745,63436.0,63426.0,0.023]
[1719185921652,2.59942233,63435.0,63426.0,0.023]
[1719185921858,1.30776227,63434.0,63426.0,0.023]
[1719185922097,0.24677071,63433.0,63422.0,0.023]
[1719185922297,0.09420959,63432.0,63422.0,0.023]
[1719185922480,0.24677071,63431.0,63422.0,0.023]
[1719185922788,0.09420959,63430.0,63422.0,0.023]
[1719185923007,0.15256112,63429.0,63428.0,0.05024227]
[1719185923215,0.2461123,63429.0,63428.0,0.07324227]
[1719185924274,0.09355118,63429.0,63428.0,0.23090127]
[1719185924480,0.1,63435.0,63434.0,0.05024227]
[1719185924685,1.49673212,63435.0,63434.0,0.07324227]
[1719185924834,1.71638597,63435.0,63434.0,0.07324227]
[1719185925626,1.63838597,63435.0,63434.0,0.023]
[1719185925861,1.63838597,63435.0,63433.0,0.023]
[1719185926065,0.95394253,63434.0,63433.0,0.023]
[1719185926280,1.05394253,63434.0,63433.0,0.023]
[1719185927263,1.05435436,63434.0,63433.0,0.023]
[1719185927667,1.04352936,63434.0,63433.0,0.023]
[1719185928266,0.91729836,63434.0,63433.0,0.023]
[1719185928847,0.84590836,63434.0,63433.0,0.023]
[1719185929205,0.62665012,63434.0,63433.0,0.023]
[1719185929407,0.84620032,63434.0,63433.0,0.023]
[1719185930189,0.73457532,63434.0,63433.0,0.023]
[1719185931266,0.09301423,63436.0,63434.0,2.38644961]
[1719185931472,3.23107545,63435.0,63434.0,2.38644961]
[1719185932033,3.23266122,63435.0,63434.0,2.38644961]
[1719185932248,4.26634725,63435.0,63434.0,2.38644961]
[1719185932605,4.62590709,63435.0,63434.0,2.38644961]
[1719185932739,4.4661444,63435.0,63434.0,2.38644961]
[1719185932942,4.62318545,63435.0,63434.0,2.38644961]
[1719185933166,4.62590213,63435.0,63434.0,2.38644961]
[1719185933366,4.72590213,63435.0,63434.0,2.38644961]
[1719185933788,4.77148595,63435.0,63434.0,2.38644961]
[1719185933998,5.11985484,63435.0,63434.0,2.31831127]
[1719185934206,5.11985484,63435.0,63434.0,1.42604634]
[1719185934207,5.39629959,63435.0,63434.0,1.42604634]
[1719185934410,4.82139959,63435.0,63434.0,0.80199937]
[1719185934749,4.7748294,63435.0,63434.0,0.80199937]
[1719185935132,4.53718621,63435.0,63434.0,0.80199937]
[1719185935336,4.77304332,63435.0,63434.0,0.60455731]
[1719185935507,5.02121663,63435.0,63434.0,0.60455731]
[1719185935828,4.79231148,63435.0,63434.0,0.60455731]
[1719185936455,4.79231148,63435.0,63434.0,0.3475939]
[1719185936656,4.73296184,63435.0,63434.0,0.3475939]
[1719185936950,4.75700025,63435.0,63434.0,0.3475939]
[1719185937955,4.73296184,63435.0,63434.0,0.3475939]
[1719185938155,4.7619803,63435.0,63434.0,0.3475939]
[1719185938376,4.7619803,63435.0,63434.0,0.12955973]
[1719185938377,4.78602365,63435.0,63434.0,0.12955973]
[1719185938580,4.7619803,63435.0,63434.0,0.11464896]
[1719185939184,4.86649533,63435.0,63434.0,0.11464896]
[1719185940611,4.69909533,63435.0,63434.0,0.11464896]
[1719185940989,1.43901444,63435.0,63434.0,0.11464896]
[1719185941197,1.50984268,63435.0,63434.0,0.11464896]
[1719185941403,0.0946,63418.0,63402.0,0.04024227]
[1719185941607,0.13959878,63416.0,63414.0,0.46604476]
[1719185941775,0.13959878,63416.0,63403.0,0.023]
[1719185941776,2.64213862,63415.0,63403.0,0.023]
[1719185942078,0.04652789,63405.0,63404.0,0.05024227]
[1719185942288,0.22180939,63405.0,63404.0,0.07324227]
[1719185942494,0.21735569,63405.0,63404.0,0.07324227]
[1719185942620,0.21735569,63405.0,63404.0,0.06324227]
[1719185943156,0.3217077,63405.0,63404.0,0.06324227]
[1719185943362,0.1,63405.0,63404.0,0.06324227]
[1719185943582,0.11725043,63405.0,63404.0,0.06324227]
[1719185943728,0.21725043,63405.0,63404.0,0.06324227]
[1719185944180,0.21725043,63405.0,63404.0,0.023]
[1719185944409,0.21725043,63405.0,63403.0,0.023]
[1719185944546,0.1465278,63405.0,63404.0,0.04024227]
[1719185944748,0.1465278,63405.0,63403.0,0.023]
[1719185944749,0.21720932,63405.0,63403.0,0.023]
[1719185944961,0.1465278,63405.0,63404.0,0.04024227]
[1719185945173,0.36975548,63405.0,63403.0,0.023]
[1719185945529,0.36975548,63404.0,63402.0,0.04024227]
[1719185945650,0.07066656,63403.0,63402.0,0.04024227]
[1719185945852,0.07066656,63403.0,63402.0,0.06324227]
[1719185947447,0.07066656,63403.0,63402.0,0.07324227]
[1719185949608,0.0632,63410.0,63409.0,0.05024227]
[1719185949808,0.06979015,63412.0,63411.0,0.05024227]
[1719185950041,0.15256112,63412.0,63409.0,0.04024227]
[1719185950220,0.84960441,63411.0,63409.0,0.04024227]
[1719185950423,0.13949229,63412.0,63409.0,0.04024227]
[1719185950424,0.04653029,63412.0,63410.0,0.06324227]
[1719185950578,0.06969557,63411.0,63410.0,0.023]
[1719185950775,0.06969557,63411.0,63410.0,0.06324227]
[1719185950977,0.06969557,63411.0,63410.0,0.023]
[1719185951567,0.22225669,63411.0,63408.0,0.05024227]
[1719185951773,0.04653029,63409.0,63405.0,0.3162]
[1719185951980,1.09621569,63408.0,63405.0,0.3162]
[1719185952179,0.06969557,63407.0,63405.0,0.3162]
[1719185952653,0.0696177,63406.0,63405.0,0.35644227]
[1719185952846,0.0696177,63406.0,63405.0,0.3392]
[1719185953628,0.06959481,63407.0,63405.0,0.3392]
[1719185953928,0.06959481,63406.0,63405.0,0.3392]
[1719185954662,0.49405081,63406.0,63405.0,0.3392]
[1719185954845,0.26031281,63406.0,63405.0,0.3392]
[1719185955503,0.190718,63406.0,63405.0,0.3392]
[1719185955707,0.0618162,63406.0,63405.0,0.3392]
[1719185955919,0.5377302,63406.0,63405.0,0.3392]
[1719185956135,0.5036732,63406.0,63405.0,0.3392]
[1719185956331,0.2175342,63406.0,63405.0,0.38944227]
[1719185956581,0.0618162,63406.0,63405.0,0.38944227]
[1719185956720,0.0465138,63409.0,63407.0,0.05024227]
[1719185956922,0.69507315,63408.0,63407.0,0.05024227]
[1719185957322,0.79054666,63408.0,63407.0,0.05024227]
[1719185957525,0.7280473,63408.0,63407.0,0.05024227]
[1719185957712,0.63257315,63408.0,63406.0,0.04024227]
[1719185957911,0.15727287,63407.0,63406.0,0.05024227]
[1719185958717,0.15727287,63407.0,63405.0,0.3392]
[1719185958947,0.04653709,63409.0,63405.0,0.3392]
[1719185959144,1.04887717,63408.0,63407.0,0.05024227]
[1719185959548,1.00938617,63408.0,63407.0,0.0003458]
[1719185959758,0.96284908,63408.0,63407.0,0.0003458]
[1719185959974,0.91540089,63408.0,63407.0,0.0003458]
[1719185960379,0.86884908,63408.0,63407.0,0.0003458]
[1719185960585,0.91540564,63408.0,63407.0,0.0003458]
[1719185960788,1.2602352,63408.0,63407.0,0.0003458]
[1719185961028,1.25390308,63408.0,63407.0,0.0003458]
[1719185961230,1.37028468,63408.0,63407.0,0.0003458]
[1719185961660,1.46839149,63408.0,63407.0,0.0003458]
[1719185961865,1.41444116,63408.0,63407.0,0.0003458]
[1719185962217,1.37826705,63408.0,63407.0,0.0003458]
[1719185962415,1.3549916,63408.0,63407.0,0.0003458]
[1719185962619,1.26188004,63408.0,63407.0,0.0003458]
[1719185962777,1.33171365,63408.0,63407.0,0.04058807]
[1719185962976,1.26188004,63408.0,63407.0,0.0003458]
[1719185963166,1.12887718,63408.0,63407.0,0.0003458]
[1719185964183,1.12724541,63408.0,63407.0,0.00053565]
[1719185964378,1.22035697,63408.0,63407.0,0.00053565]
[1719185964585,1.22037709,63408.0,63407.0,0.00053565]
[1719185965427,1.09328635,63408.0,63407.0,0.00053565]
[1719185965640,1.18641809,63408.0,63407.0,0.00053565]
[1719185965842,1.16314681,63408.0,63407.0,0.00053565]
[1719185966040,1.16314681,63408.0,63407.0,0.02353565]
[1719185966263,1.09328635,63408.0,63407.0,0.02353565]
[1719185966467,1.09328635,63408.0,63407.0,0.00053565]
[1719185966671,1.09328635,63408.0,63407.0,0.02353565]
[1719185966886,1.18641809,63408.0,63407.0,0.02353565]
[1719185967095,1.18644452,63408.0,63407.0,0.02353565]
[1719185967511,1.09328635,63408.0,63407.0,0.02353565]
[1719185967714,1.09079973,63408.0,63407.0,0.00053565]
[1719185967921,1.18397491,63408.0,63407.0,0.00053565]
[1719185968127,1.18397431,63408.0,63407.0,0.00053565]
[1719185968302,1.51004331,63408.0,63407.0,0.00053565]
[1719185968501,1.22979122,63408.0,63407.0,0.00053565]
[1719185968705,1.25731633,63408.0,63407.0,0.00053565]
[1719185969028,1.16412322,63408.0,63407.0,0.00053565]
[1719185969210,1.25731613,63408.0,63407.0,0.00053565]
[1719185969422,1.16412322,63408.0,63407.0,0.00053565]
[1719185969599,1.28062007,63408.0,63407.0,0.05077792]
[1719185970025,1.11474822,63408.0,63407.0,0.05077792]
[1719185970378,1.23124507,63408.0,63407.0,0.04077792]
[1719185970587,1.23124507,63408.0,63407.0,0.05077792]
[1719185970795,1.11445482,63408.0,63407.0,0.05077792]
[1719185971237,1.2310077,63408.0,63407.0,0.05077792]
[1719185971478,0.38338616,63408.0,63407.0,0.66827792]
[1719185971685,0.31341982,63408.0,63407.0,0.82598892]
[1719185971976,0.31341982,63408.0,63407.0,0.66827792]
[1719185972393,0.2190943,63408.0,63407.0,0.66827792]
[1719185973164,0.2190943,63408.0,63407.0,1.37474936]
[1719185973371,0.2190943,63408.0,63407.0,1.69017136]
[1719185973702,0.06017821,63408.0,63407.0,2.00559336]
[1719185973907,0.04664473,63411.0,63410.0,0.20794527]
[1719185974042,0.10581221,63411.0,63410.0,0.34089011]
[1719185974600,0.05916748,63411.0,63410.0,0.34089011]
[1719185974797,0.05916748,63411.0,63410.0,0.34123591]
[1719185976610,0.05916748,63411.0,63410.0,1.29061103]
[1719185976808,0.01938592,63425.0,63424.0,0.01]
[1719185977008,0.19577844,63425.0,63424.0,0.07324227]
[1719185977214,0.27556872,63425.0,63424.0,0.32064227]
[1719185977413,0.27557569,63425.0,63424.0,0.63884227]
[1719185977611,0.31581548,63425.0,63424.0,0.63884227]
[1719185977757,0.29165742,63425.0,63424.0,0.63884227]
[1719185978216,0.29165742,63425.0,63419.0,0.04024227]
[1719185978217,0.1755757,63425.0,63419.0,0.04024227]
[1719185978392,0.14019906,63422.0,63420.0,0.023]
[1719185978602,0.15087578,63421.0,63420.0,0.06324227]
[1719185978777,0.15087578,63421.0,63420.0,0.07324227]
[1719185978978,0.29107484,63421.0,63420.0,0.07324227]
[1719185979831,0.2911859,63421.0,63420.0,0.08324227]
[1719185980367,0.15099596,63421.0,63420.0,0.08324227]
[1719185981168,0.15099596,63421.0,63420.0,0.023]
[1719185982841,0.15099596,63421.0,63420.0,0.06324227]
[1719185982842,0.14969287,63421.0,63420.0,0.06324227]
[1719185983045,0.14969287,63421.0,63420.0,0.08324227]
[1719185983391,0.14969287,63421.0,63420.0,0.023]
[1719185983582,0.09198533,63421.0,63420.0,0.023]
[1719185983709,0.09198533,63421.0,63420.0,0.08324227]
[1719185984310,0.09198533,63421.0,63420.0,0.023]
[1719185985013,0.14969287,63421.0,63420.0,0.023]
[1719185985857,0.1,63432.0,63420.0,0.023]
[1719185986031,0.14011472,63422.0,63420.0,0.023]
[1719185986228,0.15256112,63431.0,63420.0,0.023]
[1719185986439,0.14011483,63422.0,63420.0,0.023]
[1719185986653,0.14987787,63421.0,63420.0,0.023]
[1719185987254,0.14987787,63421.0,63416.0,0.2474]
[1719185987466,1.65993548,63420.0,63409.0,0.39064227]
[1719185987668,0.14009917,63414.0,63408.0,0.04024227]
[1719185987905,0.14009917,63412.0,63408.0,0.04024227]
[1719185988098,0.61400492,63411.0,63408.0,0.04024227]
[1719185988303,0.61400492,63411.0,63407.0,0.00112485]
[1719185989109,0.6156257,63411.0,63407.0,0.00112485]
[1719185989318,0.6156257,63411.0,63409.0,0.04024227]
[1719185989522,0.6156257,63411.0,63407.0,0.06136712]
[1719185990361,0.1514997,63411.0,63407.0,0.06136712]
[1719185990568,0.67857627,63411.0,63407.0,0.04136712]
[1719185990888,1.02018182,63411.0,63407.0,0.00112485]
[1719185991126,1.41909082,63411.0,63407.0,0.00112485]
[1719185991330,1.40871882,63411.0,63407.0,0.00112485]
[1719185991544,1.38871882,63411.0,63407.0,0.00112485]
[1719185992371,1.38872471,63411.0,63407.0,0.00112485]
[1719185993609,1.38872471,63411.0,63410.0,0.00029167]
[1719185993959,0.91573671,63411.0,63410.0,0.00029167]
[1719185994583,0.76337371,63411.0,63410.0,0.00029167]
[1719185995166,0.76355437,63411.0,63410.0,0.00029167]
[1719185995733,0.76358077,63411.0,63410.0,0.00029167]
[1719185996263,0.76358077,63411.0,63410.0,0.06053394]
[1719185996264,0.61101965,63411.0,63410.0,0.06053394]
[1719185996490,0.25171265,63411.0,63410.0,0.08353394]
[1719185998928,0.25171265,63411.0,63410.0,0.02329167]
[1719185999156,0.39183389,63411.0,63410.0,0.00029167]
[1719185999317,0.39183389,63411.0,63410.0,0.06053394]
[1719185999520,0.39183457,63411.0,63410.0,0.08353394]
[1719185999737,0.25171265,63411.0,63410.0,0.08353394]
[1719186000485,0.25171265,63411.0,63410.0,0.00029167]
[1719186000991,0.25168607,63411.0,63410.0,0.00029167]
[1719186001229,0.40424719,63411.0,63410.0,0.00029167]
[1719186001473,1.27870419,63411.0,63410.0,0.00029167]
[1719186001752,1.21383419,63411.0,63410.0,0.00029167]
[1719186002768,1.3509779,63411.0,63410.0,0.00029167]
[1719186003008,1.50858083,63411.0,63410.0,0.00029167]
[1719186003251,1.3509779,63411.0,63410.0,0.00029167]
[1719186003499,1.48119276,63411.0,63410.0,0.00029167]
[1719186003721,1.34398651,63411.0,63410.0,0.00029167]
[1719186004030,1.06214812,63411.0,63410.0,0.00029167]
[1719186004288,1.21400673,63411.0,63410.0,0.00029167]
[1719186004531,0.40441973,63411.0,63410.0,0.00029167]
[1719186005511,0.55697387,63411.0,63410.0,0.00029167]
[1719186005749,3.56777305,63411.0,63410.0,0.00029167]
[1719186005959,3.84238373,63411.0,63410.0,0.00029167]
[1719186006159,3.53445644,63411.0,63410.0,0.00029167]
[1719186006668,3.40584324,63411.0,63410.0,0.00029167]
[1719186006939,3.36001724,63411.0,63410.0,0.00029167]
[1719186007346,3.51257138,63411.0,63410.0,0.00029167]
[1719186008277,3.49487938,63411.0,63410.0,0.00029167]
[1719186008471,2.96462324,63411.0,63410.0,0.00029167]
[1719186008675,2.21479724,63411.0,63410.0,0.00029167]
[1719186009580,1.93400412,63411.0,63410.0,0.00029167]
[1719186009708,2.21398677,63411.0,63410.0,0.00029167]
[1719186010401,2.2592647,63411.0,63410.0,0.00029167]
[1719186010524,2.2592647,63411.0,63410.0,0.00122667]
[1719186010729,2.64684196,63411.0,63410.0,0.00122667]
[1719186010928,0.09488,63409.0,63407.0,0.000935]
[1719186011144,5.38232723,63408.0,63407.0,0.000935]
[1719186011346,5.63488137,63408.0,63407.0,0.000935]
[1719186011634,6.3946391,63408.0,63407.0,0.000935]
[1719186011834,6.44145912,63408.0,63407.0,0.000935]
[1719186012060,6.67119723,63408.0,63407.0,1e-08]
[1719186012259,3.44381323,63408.0,63407.0,1e-08]
[1719186012478,0.69488,63398.0,63397.0,0.000935]
[1719186012679,4.60489167,63398.0,63397.0,0.000935]
[1719186012884,4.63433063,63398.0,63382.0,0.3241]
[1719186013084,4.63433063,63398.0,63384.0,0.04024227]
[1719186013085,0.09488,63396.0,63384.0,0.04024227]
[1719186013310,1.72010012,63396.0,63388.0,0.04024227]
[1719186013514,1.97744841,63396.0,63386.0,0.04024227]
[1719186013686,1.82010012,63396.0,63385.0,0.07764518]
[1719186013902,1.82010012,63396.0,63391.0,0.04024227]
[1719186013903,1.72522012,63396.0,63391.0,0.04024227]
[1719186014118,0.65257317,63396.0,63394.0,0.06024227]
[1719186014283,0.25020658,63396.0,63395.0,0.64709227]
[1719186014499,0.25020658,63396.0,63395.0,0.67009227]
[1719186014500,0.15020658,63396.0,63395.0,0.67009227]
[1719186014896,0.02421726,63397.0,63396.0,0.06024227]
[1719186015429,0.13989804,63403.0,63398.0,0.04024227]
[1719186015634,0.746473,63402.0,63398.0,0.04024227]
[1719186015828,0.546794,63402.0,63400.0,0.04024227]
[1719186016033,0.1,63401.0,63400.0,0.06024227]
[1719186016208,0.649392,63401.0,63400.0,0.04024227]
[1719186016396,0.86767,63401.0,63400.0,0.04024227]
[1719186016596,0.86767,63401.0,63400.0,0.06024227]
[1719186016796,0.80457,63401.0,63400.0,0.06024227]
[1719186017019,0.73027,63401.0,63398.0,0.04024227]
[1719186017228,0.70457,63400.0,63399.0,0.06024227]
[1719186017428,0.23524,63400.0,63399.0,0.06024227]
[1719186017634,0.0932609,63400.0,63398.0,0.04024227]
[1719186017833,0.1,63401.0,63400.0,0.06024227]
[1719186018451,0.1,63407.0,63400.0,0.06024227]
[1719186018659,1.02731812,63406.0,63405.0,0.04024227]
[1719186018876,1.12731812,63406.0,63404.0,0.04024227]
[1719186019080,0.610786,63405.0,63404.0,0.04024227]
[1719186019524,0.610786,63405.0,63401.0,0.06024227]
[1719186019705,0.783135,63404.0,63402.0,0.04024227]
[1719186019904,0.1,63403.0,63402.0,0.04024227]
[1719186020108,0.1,63403.0,63402.0,0.06024227]
[1719186020916,0.1,63405.0,63404.0,0.04024227]
[1719186021118,0.639487,63405.0,63404.0,0.04024227]
[1719186021456,1.4774815,63408.0,63407.0,0.06024227]
[1719186021604,1.5774815,63408.0,63407.0,0.06024227]
[1719186022061,0.63375554,63408.0,63407.0,0.06024227]
[1719186022233,0.3505,63408.0,63407.0,0.06024227]
[1719186022433,0.09328009,63410.0,63409.0,0.06024227]
[1719186022995,0.19413009,63411.0,63410.0,0.06024227]
[1719186023124,0.26904825,63411.0,63410.0,0.06024227]
[1719186024387,0.26885808,63411.0,63410.0,0.06024227]
[1719186024626,0.17554153,63411.0,63410.0,0.06024227]
[1719186024960,0.11517961,63411.0,63407.0,0.5601]
[1719186025347,0.11517961,63411.0,63410.0,0.08324227]
[1719186025348,0.07084238,63411.0,63410.0,0.08324227]
[1719186025548,0.11047893,63411.0,63410.0,0.08324227]
[1719186025754,0.04048655,63411.0,63410.0,0.08324227]
[1719186026184,0.11047893,63411.0,63410.0,0.06324227]
[1719186026367,0.13380689,63411.0,63410.0,0.08324227]
[1719186026779,0.76659771,63411.0,63410.0,0.08324227]
[1719186026943,0.04048655,63411.0,63410.0,0.08324227]
[1719186027165,0.146608,63411.0,63410.0,0.08324227]
[1719186027443,0.13445637,63411.0,63410.0,0.08324227]
[1719186027619,0.04110919,63411.0,63410.0,0.08324227]
[1719186027826,0.47237934,63411.0,63410.0,0.08324227]
[1719186028029,0.37903019,63411.0,63410.0,0.08324227]
[1719186028232,0.04110919,63411.0,63410.0,0.08324227]
[1719186028611,0.13446875,63411.0,63410.0,0.08324227]
[1719186028816,0.04110919,63411.0,63410.0,0.08324227]
[1719186029220,0.13446858,63411.0,63410.0,0.08324227]
[1719186029468,0.04110919,63411.0,63410.0,0.08324227]
[1719186030080,0.00085,63411.0,63410.0,0.08324227]
[1719186030433,0.15750443,63411.0,63410.0,0.08324227]
[1719186030633,0.04079195,63411.0,63410.0,0.08324227]
[1719186030839,0.15750443,63411.0,63410.0,0.08324227]
[1719186031041,0.04079195,63411.0,63410.0,0.08324227]
[1719186031257,0.15750443,63411.0,63410.0,0.08324227]
[1719186031505,0.17281698,63411.0,63407.0,0.14334227]
[1719186031666,0.09339004,63409.0,63407.0,0.14334227]
[1719186031866,0.03994195,63408.0,63407.0,0.14334227]
[1719186032391,0.0552545,63408.0,63407.0,0.14334227]
[1719186033226,0.05539708,63408.0,63407.0,0.14334227]
[1719186033894,0.14879715,63408.0,63407.0,0.14334227]
[1719186034264,0.05539708,63408.0,63407.0,0.1734488]
[1719186034466,0.12545243,63408.0,63407.0,0.65915327]
[1719186034669,0.12545243,63408.0,63407.0,0.79315327]
[1719186034670,0.10210217,63408.0,63407.0,0.79315327]
[1719186035091,0.10210217,63408.0,63407.0,1.11857527]
[1719186035296,0.05539708,63408.0,63407.0,0.79315327]
[1719186035579,0.04008453,63408.0,63407.0,0.80315327]
[1719186035947,0.05535546,63408.0,63407.0,0.80315327]
[1719186036125,0.05669516,63408.0,63407.0,0.80315327]
[1719186036327,0.05669516,63408.0,63407.0,1.11857527]
[1719186036724,0.04142423,63408.0,63407.0,1.11857527]
[1719186036928,0.04142423,63408.0,63407.0,1.73911253]
[1719186037354,0.00085,63411.0,63410.0,0.01]
[1719186037553,0.00085,63411.0,63410.0,0.50611]
[1719186037781,0.04220285,63411.0,63410.0,0.50611]
[1719186038273,0.04220285,63411.0,63410.0,0.75241]
[1719186038469,0.04220285,63411.0,63410.0,0.91183052]
[1719186038958,0.04239655,63411.0,63410.0,1.23723752]
[1719186039169,0.04668323,63416.0,63414.0,0.01]
[1719186039381,0.07002485,63418.0,63415.0,0.157]
[1719186039382,0.04668323,63418.0,63415.0,0.157]
[1719186039808,0.04668323,63419.0,63415.0,0.314691]
[1719186040011,0.04668323,63419.0,63416.0,0.2453]
[1719186040213,0.09336647,63422.0,63416.0,0.2453]
[1719186040214,0.04668323,63420.0,63416.0,0.2553]
[1719186040413,0.04668323,63422.0,63416.0,0.2553]
[1719186040855,0.04668323,63422.0,63416.0,0.2453]
[1719186041408,0.04668323,63421.0,63416.0,0.2453]
[1719186041557,0.11670809,63427.0,63416.0,0.2453]
[1719186041558,0.04668323,63422.0,63416.0,0.2453]
[1719186041781,0.04668323,63422.0,63417.0,0.00315336]
[1719186041972,0.04665588,63422.0,63417.0,0.16083836]
[1719186042300,0.04665588,63422.0,63416.0,0.2453]
[1719186042301,0.11663971,63422.0,63416.0,0.2453]
[1719186042499,0.04665588,63419.0,63413.0,0.314]
[1719186042708,0.09331177,63423.0,63413.0,0.314]
[1719186042709,0.04665588,63418.0,63413.0,0.314]
[1719186043558,0.04750588,63418.0,63413.0,0.314]
[1719186045000,0.04749014,63418.0,63413.0,0.314]
[1719186045383,0.00085,63418.0,63413.0,0.314]
[1719186047017,0.00085,63418.0,63414.0,0.00315354]
[1719186047445,0.00085,63418.0,63413.0,0.47158989]
[1719186047655,0.00085,63418.0,63414.0,0.00315353]
[1719186047862,0.00085,63418.0,63415.0,0.49167916]
[1719186048067,0.00085,63418.0,63417.0,0.473058]
[1719186048267,0.00085,63418.0,63417.0,0.82143]
[1719186048702,0.00085,63418.0,63415.0,0.14329816]
[1719186048876,0.00085,63418.0,63416.0,0.023]
[1719186049090,0.00085,63418.0,63416.0,0.29988882]
[1719186049252,0.0374069,63417.0,63416.0,0.29988882]
[1719186051422,0.0374069,63417.0,63416.0,0.821442]
[1719186051620,0.0374069,63417.0,63416.0,0.496065]
[1719186051944,0.0374069,63417.0,63416.0,0.811442]
[1719186054159,0.00085,63418.0,63417.0,0.473058]
[1719186054375,0.03930155,63418.0,63417.0,0.82143]
[1719186054781,0.03930155,63418.0,63417.0,0.81143]
[1719186056249,0.03930155,63418.0,63417.0,0.96398414]
[1719186057096,0.00085,63418.0,63417.0,0.96398414]
[1719186057525,0.00085,63418.0,63417.0,0.64861214]
[1719186057760,0.03935271,63418.0,63417.0,0.64861214]
[1719186058825,0.00085,63418.0,63417.0,0.64861214]
[1719186058999,0.0393636,63418.0,63417.0,0.64861214]
[1719186059784,0.0393636,63418.0,63417.0,0.516058]
[1719186060211,0.03935131,63418.0,63417.0,0.775458]
[1719186060413,0.03935131,63418.0,63417.0,1.71229112]
[1719186060625,0.03935131,63418.0,63417.0,2.02766312]
[1719186060831,0.03935131,63418.0,63417.0,2.18021726]
[1719186062337,0.00085,63418.0,63417.0,2.31421726]
[1719186062860,0.00085,63418.0,63417.0,2.51421726]
[1719186063065,0.00085,63418.0,63417.0,2.92958926]
[1719186063286,0.09339586,63433.0,63430.0,0.01]
[1719186063287,0.04669793,63431.0,63430.0,0.01]
[1719186063494,0.11674483,63436.0,63430.0,0.01]
[1719186063495,0.04669793,63432.0,63431.0,0.167651]
[1719186063663,0.04669793,63433.0,63432.0,0.482947]
[1719186063867,0.08628388,63433.0,63432.0,0.811245]
[1719186064523,0.03958595,63433.0,63432.0,0.811245]
[1719186064723,0.03958595,63433.0,63432.0,1.19302677]
[1719186064933,0.04669793,63435.0,63434.0,0.01]
[1719186065117,0.04669793,63435.0,63434.0,0.97378112]
[1719186065118,0.04029656,63435.0,63434.0,0.97378112]
[1719186065414,0.11769017,63441.0,63440.0,0.472887]
[1719186065624,0.13461613,63441.0,63440.0,0.5451757]
[1719186065834,0.13461656,63441.0,63440.0,0.8704337]
[1719186065978,0.04114764,63441.0,63440.0,0.8604337]
[1719186066987,0.03998471,63441.0,63440.0,0.8604337]
[1719186067417,0.11007003,63441.0,63430.0,0.5569]
[1719186067642,0.11007003,63441.0,63413.0,0.1]
[1719186067643,0.04672283,63431.0,63424.0,0.2572]
[1719186067843,0.04672283,63431.0,63424.0,0.5180313]
[1719186067844,0.04672426,63429.0,63424.0,0.5180313]
[1719186068006,0.04672426,63427.0,63424.0,0.5180313]
[1719186068214,0.03913471,63428.0,63424.0,0.2572]
[1719186068412,0.04672132,63426.0,63424.0,0.414867]
[1719186068612,0.03925183,63427.0,63421.0,0.134]
[1719186068613,0.08597315,63425.0,63421.0,0.134]
[1719186068919,0.03925183,63424.0,63421.0,0.134]
[1719186069167,0.03925183,63424.0,63423.0,0.157671]
[1719186069441,0.03925183,63424.0,63421.0,0.134]
[1719186069442,0.03894963,63424.0,63421.0,0.134]
[1719186069667,0.03894963,63423.0,63421.0,0.134]
[1719186069875,0.03894963,63422.0,63415.0,0.3051]
[1719186070025,0.04672132,63425.0,63421.0,0.157675]
[1719186070248,0.03861609,63424.0,63421.0,0.157675]
[1719186071148,0.3127,63443.0,63421.0,0.157675]
[1719186071353,0.046727,63425.0,63421.0,0.157675]
[1719186071547,0.03843729,63424.0,63421.0,0.157675]
[1719186071745,0.08516429,63424.0,63421.0,0.157675]
[1719186071968,0.03843729,63423.0,63421.0,0.157675]
[1719186072156,0.03843729,63423.0,63420.0,0.315357]
[1719186072339,0.03843729,63423.0,63421.0,0.157676]
[1719186072549,0.03843729,63423.0,63422.0,0.157673]
[1719186073157,0.05121109,63423.0,63422.0,0.47302]
[1719186073569,0.03843729,63423.0,63422.0,0.47302]
[1719186073779,0.05121109,63423.0,63422.0,0.47302]
[1719186073990,0.05121109,63423.0,63422.0,0.157673]
[1719186074272,0.05950686,63423.0,63415.0,0.3051]
[1719186074385,0.04672987,63419.0,63416.0,0.023]
[1719186074585,0.0127738,63423.0,63417.0,0.157686]
[1719186074788,0.0127738,63423.0,63417.0,0.473058]
[1719186074789,0.07010043,63419.0,63417.0,0.473058]
[1719186075062,0.07010043,63419.0,63418.0,0.023]
[1719186075254,0.10771517,63419.0,63418.0,0.023]
[1719186075433,0.10771517,63419.0,63418.0,0.180683]
[1719186075634,0.12048897,63419.0,63418.0,0.180683]
[1719186075837,0.14385578,63419.0,63414.0,0.157693]
[1719186076039,0.04673565,63415.0,63414.0,0.157693]
[1719186076243,0.03761474,63415.0,63414.0,0.180693]
[1719186076454,0.0503953,63415.0,63414.0,0.180693]
[1719186076654,0.0503953,63415.0,63414.0,0.023]
[1719186076857,0.0503953,63415.0,63408.0,0.331]
[1719186077061,0.04673777,63410.0,63409.0,0.023]
[1719186077285,0.09737219,63410.0,63408.0,0.023]
[1719186077465,0.05952015,63410.0,63409.0,0.0604735]
[1719186077665,0.09737404,63410.0,63409.0,0.023]
[1719186078185,0.05063442,63410.0,63409.0,0.023]
[1719186078596,0.097379,63410.0,63409.0,0.023]
[1719186078753,0.09737856,63410.0,63409.0,0.023]
[1719186078954,0.09737856,63410.0,63408.0,0.023]
[1719186079141,0.084598,63409.0,63408.0,0.1456677]
[1719186079344,0.03785386,63409.0,63408.0,0.1456677]
[1719186079566,0.03785386,63409.0,63408.0,0.023]
[1719186079770,0.09737856,63409.0,63408.0,0.023]
[1719186080173,0.01278056,63409.0,63408.0,0.023]
[1719186080375,0.09723962,63409.0,63408.0,0.023]
[1719186080576,0.08445906,63409.0,63408.0,0.023]
[1719186080798,0.09723962,63409.0,63408.0,0.1618587]
[1719186081023,0.09723962,63409.0,63408.0,0.180708]